[Event "45th National Sub Junior 2019"]
[Site "Tiruchengode"]
[Date "2019.07.14"]
[Round "8.4"]
[White "Kushagra Mohan"]
[Black "Arjun Gupta"]
[Result "1/2-1/2"]
[ECO "B81"]
[WhiteElo "2250"]
[BlackElo "1851"]
[Annotator "NA"]
[PlyCount "134"]
[EventDate "2019.07.09"]
[EventCountry "IND"]
[SourceTitle "playchess.com"]
[Source "ChessBase"]
[SourceQuality "1"]
[TimeControl "5400+30"]

{[%evp 8,116,32,10,21,4,29,36,20,20,12,14,32,32767,32767,32767,25,32767,32767,32767,32767,32767,32767,32767,37,32767,32767,32767,32767,32767,32767,32767,32767,32767,24,18,32767,30,52,18,13,10,14,16,29,14,16,11,15,-71,-66,-75,-78,-97,-85,-143,-182,-145,-181,-261,-243,-291,-283,-291,-272,-285,32767,-275,-263,-283,-283,-114,-283,-258,-245,-307,32767,-310,-152,32767,-152,-297,-160,-341,-25,-25,-29,-29,-23,-25,-24,-24,-24,-24,32767,32767,32767,32767,32767,32767,32767,-19,32767,32767,-12,32767,0,32767,32767,32767,0]} 1. e4 {[%emt 0:00:00]} c5 {[%emt 0:00:00]} 2. Nf3 {[%emt 0:00:00]} d6 {[%emt 0:00:00]} 3. d4 {[%emt 0:00:00]} cxd4 {[%emt 0:00:00]} 4. Nxd4 {[%emt 0:00:00]} Nf6 {[%emt 0:00:00]} 5. Nc3 {[%emt 0:00:00]} a6 {[%emt 0:00:00]} 6. h3 {[%emt 0:00:00]} e6 {[%emt 0:00:04]} 7. g4 {[%emt 0:00:00]} d5 {[%emt 0:00:12]} 8. exd5 {[%emt 0:00:00]} Nxd5 {[%emt 0:00:05]} 9. Nde2 {[%emt 0:00:00]} Bb4 {[%emt 0:00:15]} 10. Bg2 {[%emt 0:00:07]} O-O {[%emt 0:00:18]} 11. O-O {[%emt 0:00:09]} Nxc3 {[%emt 0:00:05]} 12. Nxc3 {[%emt 0:00:03]} Qc7 {[%emt 0:00:14]} 13. Qd4 {[%emt 0:00:02]} Bd6 {[%emt 0:00:42]} 14. Be3 {[%emt 0:00:12]} Bd7 {[%emt 0:00:27]} 15. Rad1 {[%emt 0:00:16]} Bh2+ {[%emt 0:00:20]} 16. Kh1 {[%emt 0:00:01]} Be5 {[%emt 0:00:15]} 17. Qb6 {[%emt 0:00:02]} Bc6 {[%emt 0:01:13]} 18. Qxc7 {[%emt 0:00:08]} Bxc7 {[%emt 0:00:01]} 19. f4 {[%emt 0:00:01]} Bxg2+ {[%emt 0:02:48]} 20. Kxg2 {[%emt 0:00:02]} Nc6 {[%emt 0:00:45]} 21. Rd7 {[%emt 0:00:30]} Rac8 {[%emt 0:00:16]} 22. Ne4 {[%emt 0:04:20]} Nb4 {[%emt 0:09:44]} 23. Bc5 {[%emt 0:06:29] Double Attack} Rfd8 $1 {[%emt 0:03:43]} 24. Rxd8+ {[%emt 0:10:11]} Rxd8 {[%emt 0:00:18]} 25. Bxb4 {[%emt 0:01:44]} Rd4 {[%emt 0:00:07] Double Attack} 26. Nf6+ {[%emt 0:00:21]} gxf6 {[%emt 0:00:37]} 27. Bc3 {[%emt 0:00:02]} Rc4 {[%emt 0:04:02]} 28. f5 {[%emt 0:08:10]} (28. Bxf6 $11 Rxc2+ 29. Kf3) 28... exf5 $1 {[%emt 0:11:50]} 29. Rxf5 {[%emt 0:20:32]} Be5 $1 {[%emt 0:02:53]} 30. Rf3 {[%emt 0:00:23]} Kg7 {[%emt 0:06:55]} 31. Rd3 {[%emt 0:00:34] [#]} Bxc3 $1 {[%emt 0:03:50]} 32. bxc3 {[%emt 0:00:01]} Ra4 {[%emt 0:00:13]} 33. Rd7 {[%emt 0:00:33]} (33. a3 $17) 33... Rxa2 {[%emt 0:00:11]} 34. Rxb7 {[%emt 0:00:19]} Rxc2+ {[%emt 0:00:08]} 35. Kg3 {[%emt 0:00:08]} Rxc3+ {[%emt 0:00:07]} 36. Kh4 {[%emt 0:00:57]} Ra3 {[%emt 0:08:17]} 37. Rb6 {[%emt 0:01:28]} Kg6 {[%emt 0:01:12]} 38. Rb8 {[%emt 0:00:42]} Ra4 {[%emt 0:00:56]} 39. Rg8+ {[%emt 0:02:45]} (39. Kg3 $19) 39... Kh6 {[%emt 0:00:04]} 40. Kg3 {[%emt 0:00:08]} Ra3+ {[%emt 0:01:17]} 41. Kh4 {[%emt 0:00:13]} a5 {[%emt 0:00:13]} 42. Ra8 {[%emt 0:00:49]} a4 {[%emt 0:46:23]} (42... Kg7 $19 43. Ra7 h6) 43. Ra5 {[%emt 0:01:21]} Kg6 {[%emt 0:00:00]} (43... Ra1 $19 44. Ra6 Kg6) 44. Ra6 {[%emt 0:00:27]} Kg7 {[%emt 0:00:00]} (44... h6 $19 {is more deadly.} 45. Ra8 f5 46. Rg8+ Kf6) 45. Ra8 $2 {[%emt 0:00:52] [#]} (45. Ra5 $17) 45... h5 $2 {[%emt 0:00:00]} (45... h6 $1 $19 46. Rc8 Rb3) 46. gxh5 {[%emt 0:03:19]} Ra1 {[%emt 0:00:00]} 47. Ra6 {[%emt 0:02:24]} a3 {[%emt 0:00:00]} 48. Ra5 {[%emt 0:00:51]} a2 {[%emt 0:00:00]} 49. Ra6 {[%emt 0:00:24]} Kh7 {[%emt 0:00:00]} 50. Ra7 {[%emt 0:00:20]} Kh6 {[%emt 0:00:00]} 51. Ra6 {[%emt 0:00:13]} Kg7 {[%emt 0:00:00]} 52. Ra5 {[%emt 0:00:28]} f5 {[%emt 0:00:00]} 53. Ra6 {[%emt 0:00:16]} f6 {[%emt 0:00:00]} 54. Ra7+ $1 {[%emt 0:00:52]} Kh6 {[%emt 0:00:00]} 55. Ra6 {[%emt 0:00:05]} f4 {[%emt 0:00:00]} 56. Rxf6+ {[%emt 0:00:13]} Kh7 {[%emt 0:00:00]} 57. Ra6 {[%emt 0:10:05]} f3 {[%emt 0:00:00]} 58. Ra7+ {[%emt 0:00:05]} Kg8 $11 {[%emt 0:00:00]} 59. Ra8+ {[%emt 0:00:35]} Kf7 {[%emt 0:00:00]} 60. h6 {[%emt 0:00:50]} f2 {[%emt 0:00:00]} 61. h7 {[%emt 0:00:11]} f1=Q {[%emt 0:00:00]} 62. h8=Q {[%emt 0:00:04]} Qf4+ {[%emt 0:00:00]} 63. Kh5 {[%emt 0:00:02]} Qf5+ {[%emt 0:00:00]} 64. Kh4 {[%emt 0:00:06]} Qe4+ {[%emt 0:00:00]} 65. Kh5 {[%emt 0:00:16]} Qf5+ {[%emt 0:00:00]} 66. Kh4 {[%emt 0:00:03]} Qf4+ {[%emt 0:00:00]} 67. Kh5 {[%emt 0:00:02]} Qf5+ {[%emt 0:00:00]} 1/2-1/2

[Event "45th National Sub Junior 2019"]
[Site "Tiruchengode"]
[Date "2019.07.14"]
[Round "8.5"]
[White "Devesh Anand Naik"]
[Black "Rathneesh R"]
[Result "1/2-1/2"]
[ECO "B44"]
[WhiteElo "1943"]
[BlackElo "2226"]
[Annotator "ChessBase"]
[PlyCount "60"]
[EventDate "2019.07.09"]
[EventCountry "IND"]
[SourceTitle "playchess.com"]
[Source "ChessBase"]
[SourceQuality "1"]
[TimeControl "5400+30"]

1. e4 {[%emt 0:00:00]} c5 {[%emt 0:00:00]} 2. Nf3 {[%emt 0:00:00]} e6 {[%emt 0:01:18]} 3. d4 {[%emt 0:00:39]} cxd4 {[%emt 0:00:07]} 4. Nxd4 {[%emt 0:00:03]} Nc6 {[%emt 0:00:19]} 5. c4 {[%emt 0:02:18]} Nf6 {[%emt 0:03:20]} 6. Nxc6 {[%emt 0:00:47]} bxc6 {[%emt 0:00:30]} 7. Bd3 {[%emt 0:01:05]} e5 {[%emt 0:09:08]} 8. Be3 {[%emt 0:01:24]} Be7 {[%emt 0:02:58]} 9. O-O {[%emt 0:00:10]} d6 {[%emt 0:03:34]} 10. f3 {[%emt 0:02:52]} O-O {[%emt 0:02:26]} 11. Nc3 {[%emt 0:00:05]} Be6 {[%emt 0:02:55]} 12. Rf2 {[%emt 0:01:15]} Nd7 {[%emt 0:07:49]} 13. Rd2 {[%emt 0:04:46]} Nb6 {[%emt 0:15:52]} 14. Qe2 {[%emt 0:04:42]} Bg5 {[%emt 0:06:30]} 15. b3 {[%emt 1:17:24]} Bxe3+ {[%emt 0:05:17]} 16. Qxe3 {[%emt 0:00:00]} Qe7 {[%emt 0:00:39]} 17. Rad1 {[%emt 0:00:00]} Rad8 {[%emt 0:01:55]} 18. a4 {[%emt 0:00:00]} Qb7 {[%emt 0:06:37]} 19. Bc2 {[%emt 0:00:00]} Qc7 {[%emt 0:05:14]} 20. c5 {[%emt 0:00:00]} dxc5 {[%emt 0:00:56]} 21. Qxc5 {[%emt 0:00:00]} Rxd2 {[%emt 0:04:07]} 22. Rxd2 {[%emt 0:00:00]} Nd7 {[%emt 0:00:09]} 23. Qe3 {[%emt 0:00:00]} Qb6 {[%emt 0:05:20]} 24. Qxb6 {[%emt 0:00:00]} axb6 {[%emt 0:00:05]} 25. b4 {[%emt 0:00:00]} Rc8 {[%emt 0:03:22]} 26. Bb3 {[%emt 0:00:00]} Nf8 {[%emt 0:01:16]} 27. Bxe6 {[%emt 0:00:00]} Nxe6 {[%emt 0:00:13]} 28. Rd7 {[%emt 0:00:00]} Rb8 {[%emt 0:01:17]} 29. Rd6 {[%emt 0:00:00]} Nd4 {[%emt 0:05:10]} 30. b5 {[%emt 0:00:00]} cxb5 {[%emt 0:00:10]} 1/2-1/2

[Event "45th National Sub Junior 2019"]
[Site "Tiruchengode"]
[Date "2019.07.14"]
[Round "8.6"]
[White "Soham Kamotra"]
[Black "Praloy Sahoo"]
[Result "0-1"]
[ECO "A29"]
[WhiteElo "2136"]
[BlackElo "1905"]
[Annotator "ChessBase"]
[PlyCount "158"]
[EventDate "2019.07.09"]
[EventCountry "IND"]
[SourceTitle "playchess.com"]
[Source "ChessBase"]
[SourceQuality "1"]
[TimeControl "5400+30"]

1. c4 {[%emt 0:00:00]} e5 {[%emt 0:00:39]} 2. g3 {[%emt 0:00:00]} Nf6 {[%emt 0:00:58]} 3. Bg2 {[%emt 0:00:00]} d5 {[%emt 0:01:10]} 4. cxd5 {[%emt 0:00:04]} Nxd5 {[%emt 0:00:04]} 5. Nc3 {[%emt 0:00:05]} Nb6 {[%emt 0:00:34]} 6. Nf3 {[%emt 0:00:02]} Nc6 {[%emt 0:00:26]} 7. O-O {[%emt 0:00:08]} Be7 {[%emt 0:00:27]} 8. d3 {[%emt 0:00:07]} O-O {[%emt 0:00:41]} 9. a3 {[%emt 0:00:04]} Be6 {[%emt 0:02:24]} 10. b4 {[%emt 0:00:06]} a5 {[%emt 0:00:27]} 11. b5 {[%emt 0:00:06]} Nd4 {[%emt 0:00:03]} 12. Nxd4 {[%emt 0:00:04]} exd4 {[%emt 0:00:56]} 13. Na4 {[%emt 0:00:01]} Bd5 {[%emt 0:00:50]} 14. Nxb6 {[%emt 0:19:04]} cxb6 {[%emt 0:02:34]} 15. Bxd5 {[%emt 0:08:53]} Qxd5 {[%emt 0:00:34]} 16. Qa4 {[%emt 0:00:04]} Bf6 {[%emt 0:09:18]} 17. Bb2 {[%emt 0:01:18]} Rfe8 {[%emt 0:12:10]} 18. Rfe1 {[%emt 0:09:01]} Rac8 {[%emt 0:03:59]} 19. Rac1 {[%emt 0:01:38]} h6 {[%emt 0:11:13]} 20. Rxc8 {[%emt 0:12:00]} Rxc8 {[%emt 0:00:16]} 21. e4 {[%emt 0:09:09]} dxe3 {[%emt 0:06:58]} 22. Bxf6 {[%emt 0:00:02]} exf2+ {[%emt 0:00:32]} 23. Kxf2 {[%emt 0:00:02]} Qf5+ {[%emt 0:05:03]} 24. Qf4 {[%emt 0:01:42]} Rc2+ {[%emt 0:00:18]} 25. Re2 {[%emt 0:00:02]} Qxd3 {[%emt 0:01:07]} 26. Rxc2 {[%emt 0:06:04]} Qxc2+ {[%emt 0:00:06]} 27. Kg1 {[%emt 0:02:44]} gxf6 {[%emt 0:01:59]} 28. a4 {[%emt 0:01:30]} Kg7 {[%emt 0:05:09]} 29. Qg4+ {[%emt 0:01:07]} Qg6 {[%emt 0:00:05]} 30. Qd4 {[%emt 0:00:43]} Qb1+ {[%emt 0:00:36]} 31. Kg2 {[%emt 0:00:02]} Qa2+ {[%emt 0:01:05]} 32. Kh3 {[%emt 0:01:50]} Qe6+ {[%emt 0:00:07]} 33. g4 {[%emt 0:00:04]} Qb3+ {[%emt 0:14:32]} 34. Kh4 {[%emt 0:02:10]} Qc2 {[%emt 0:02:00]} 35. Kh3 {[%emt 0:00:25]} Qc5 {[%emt 0:02:39]} 36. Qe4 {[%emt 0:00:29]} Qc3+ {[%emt 0:00:34]} 37. Kg2 {[%emt 0:00:19]} Qb4 {[%emt 0:00:20]} 38. Kf3 {[%emt 0:01:18]} Qc3+ {[%emt 0:01:49]} 39. Kg2 {[%emt 0:00:16]} Qd2+ {[%emt 0:00:57]} 40. Kh3 {[%emt 0:01:34]} Qd7 {[%emt 0:05:52]} 41. Qf4 {[%emt 0:02:43]} Qd3+ {[%emt 0:01:23]} 42. Kg2 {[%emt 0:01:59]} Qd5+ {[%emt 0:00:16]} 43. Kg3 {[%emt 0:01:09]} Kg6 {[%emt 0:01:59]} 44. h4 {[%emt 0:00:22]} Qd3+ {[%emt 0:00:59]} 45. Kg2 {[%emt 0:02:05]} Qd5+ {[%emt 0:00:45]} 46. Kg3 {[%emt 0:02:08]} Qd3+ {[%emt 0:02:19]} 47. Kg2 {[%emt 0:00:10]} Qe2+ {[%emt 0:00:27]} 48. Kg3 {[%emt 0:00:34]} Qe1+ {[%emt 0:00:05]} 49. Kh3 {[%emt 0:00:11]} Qh1+ {[%emt 0:00:59]} 50. Kg3 {[%emt 0:00:04]} Qg1+ {[%emt 0:00:26]} 51. Kf3 {[%emt 0:00:53]} Kg7 {[%emt 0:00:46]} 52. Qe3 {[%emt 0:02:23]} Qd1+ {[%emt 0:00:39]} 53. Kg3 {[%emt 0:00:09]} Qxa4 {[%emt 0:00:19]} 54. Qxb6 {[%emt 0:00:02]} Qb3+ {[%emt 0:00:16]} 55. Kf4 {[%emt 0:00:50]} Qc4+ {[%emt 0:01:08]} 56. Kg3 {[%emt 0:01:01]} Qc3+ {[%emt 0:00:48]} 57. Kf4 {[%emt 0:00:51]} Qe5+ {[%emt 0:00:06]} 58. Kf3 {[%emt 0:00:11]} Qd5+ {[%emt 0:00:04]} 59. Ke3 {[%emt 0:00:10]} a4 {[%emt 0:00:08]} 60. Qa5 {[%emt 0:00:11]} Qb3+ {[%emt 0:00:10]} 61. Kf4 {[%emt 0:00:14]} a3 {[%emt 0:00:10]} 62. g5 {[%emt 0:00:03]} hxg5+ {[%emt 0:00:41]} 63. hxg5 {[%emt 0:00:01]} fxg5+ {[%emt 0:00:01]} 64. Kxg5 {[%emt 0:00:10]} Qg3+ {[%emt 0:01:05]} 65. Kf5 {[%emt 0:19:39]} Qg6+ {[%emt 0:00:08]} 66. Kf4 {[%emt 0:00:00]} Qd6+ {[%emt 0:00:14]} 67. Kf3 {[%emt 0:00:00]} Qd5+ {[%emt 0:00:35]} 68. Kf4 {[%emt 0:00:00]} Qd4+ {[%emt 0:00:26]} 69. Kf5 {[%emt 0:00:00]} Qf2+ {[%emt 0:00:19]} 70. Kg5 {[%emt 0:00:00]} Qc5+ {[%emt 0:00:32]} 71. Kf4 {[%emt 0:00:00]} Qc4+ {[%emt 0:00:02]} 72. Kg3 {[%emt 0:00:00]} Qb3+ {[%emt 0:00:21]} 73. Kf4 {[%emt 0:00:00]} a2 {[%emt 0:00:28]} 74. b6 {[%emt 0:00:00]} Qc4+ {[%emt 0:00:33]} 75. Ke3 {[%emt 0:00:00]} Qc1+ {[%emt 0:00:20]} 76. Ke2 {[%emt 0:00:00]} a1=Q {[%emt 0:00:05]} 77. Qf5 {[%emt 0:00:00]} Qe1+ {[%emt 0:00:08]} 78. Kf3 {[%emt 0:00:00]} Qac3+ {[%emt 0:00:06]} 79. Kg2 {[%emt 0:00:00]} Qcg3# {[%emt 0:00:02]} 0-1

[Event "45th National Sub Junior 2019"]
[Site "Tiruchengode"]
[Date "2019.07.14"]
[Round "8.7"]
[White "Anadkat Kartavya"]
[Black "Srikrishnan P"]
[Result "1/2-1/2"]
[ECO "C00"]
[WhiteElo "1941"]
[BlackElo "1990"]
[Annotator "NA"]
[PlyCount "123"]
[EventDate "2019.07.09"]
[EventCountry "IND"]
[SourceTitle "playchess.com"]
[Source "ChessBase"]
[SourceQuality "1"]
[TimeControl "5400+30"]

1. e4 {[%emt 0:00:00]} e6 {[%emt 0:00:00]} 2. d3 {[%emt 0:00:00]} d5 {[%emt 0:00:00]} 3. Nd2 {[%emt 0:00:00]} c5 {[%emt 0:00:22]} 4. Ngf3 {[%emt 0:00:00]} Nc6 {[%emt 0:00:06]} 5. g3 {[%emt 0:00:00]} Nf6 {[%emt 0:00:09]} 6. Bg2 {[%emt 0:00:03]} Be7 {[%emt 0:00:05]} 7. O-O {[%emt 0:00:05]} O-O {[%emt 0:00:04]} 8. Re1 {[%emt 0:00:03]} dxe4 {[%emt 0:00:13]} 9. dxe4 {[%emt 0:00:06]} e5 {[%emt 0:00:05]} 10. c3 {[%emt 0:00:14]} Be6 {[%emt 0:00:40]} 11. Qe2 {[%emt 0:02:13] C00: French: Unusual White 2nd moves} Qc7 {[%emt 0:06:08]} 12. Nf1 {[%emt 0:01:12]} (12. Ng5 Bg4 13. f3 Bd7 14. Nc4 h6 15. Nh3 Rfe8 16. Nf2 Bf8 17. Ne3 Be6 18. Bh3 Bxh3 19. Nxh3 {1-0 (43) Markos,J (2591)-Caletka,R (2362) Czechia 2015}) 12... Rfd8 {[%emt 0:00:46]} 13. Ng5 {[%emt 0:11:12]} Bg4 {[%emt 0:03:09]} 14. Qc4 $146 {[%emt 0:04:15]} ({Predecessor:} 14. f3 Bh5 15. g4 Bg6 16. h4 h5 17. Ng3 Rd7 {½-½ (27) Bormann,J (1648)-Kalauch,L (1524) Hamburg 2011}) 14... Bf8 {[%emt 0:06:01]} 15. Ne3 {[%emt 0:07:15]} Na5 {[%emt 0:04:49]} 16. Qf1 {[%emt 0:00:38]} h6 {[%emt 0:01:26]} 17. Nxg4 {[%emt 0:01:21]} Nxg4 {[%emt 0:00:06]} 18. Nf3 {[%emt 0:00:55]} c4 {[%emt 0:00:33]} 19. h3 {[%emt 0:04:43]} Nf6 {[%emt 0:01:11]} 20. Qe2 {[%emt 0:04:45]} Nd7 {[%emt 0:06:35]} 21. Nd2 {[%emt 0:00:44]} Nc5 {[%emt 0:05:01]} 22. Nf1 {[%emt 0:00:22]} Nd3 {[%emt 0:00:29]} 23. Rd1 {[%emt 0:00:11]} b5 {[%emt 0:07:50]} 24. Ne3 {[%emt 0:00:47]} Rab8 {[%emt 0:04:28]} 25. Nd5 {[%emt 0:00:33]} Qb7 {[%emt 0:00:10]} 26. b4 {[%emt 0:02:27]} Nc6 {[%emt 0:01:51]} 27. Be3 {[%emt 0:02:33]} a5 {[%emt 0:10:07]} 28. a3 {[%emt 0:00:40]} Ra8 {[%emt 0:01:20]} 29. f4 {[%emt 0:12:59]} axb4 {[%emt 0:01:26]} 30. axb4 {[%emt 0:02:45]} Rxa1 {[%emt 0:00:13]} 31. Rxa1 {[%emt 0:00:05]} Ra8 $1 {[%emt 0:00:05]} 32. Qd1 {[%emt 0:01:32]} exf4 $11 {[%emt 0:06:47]} 33. gxf4 {[%emt 0:01:36]} Ra6 {[%emt 0:00:31]} 34. e5 {[%emt 0:03:39]} Qa8 {[%emt 0:03:43]} 35. Rxa6 {[%emt 0:00:15]} Qxa6 {[%emt 0:00:12]} 36. Qg4 {[%emt 0:10:03]} Ne7 {[%emt 0:12:07]} 37. Nf6+ {[%emt 0:03:37]} Kh8 {[%emt 0:00:57]} 38. Nd7 {[%emt 0:00:06]} Ng6 {[%emt 0:02:34]} 39. Nxf8 {[%emt 0:02:23]} Nxf8 {[%emt 0:00:10]} 40. Kh2 {[%emt 0:08:07]} Qa1 {[%emt 0:09:45]} 41. f5 {[%emt 0:10:47]} Nxe5 {[%emt 0:00:27]} 42. Qd4 {[%emt 0:00:01]} Nfd7 {[%emt 0:02:26]} 43. f6 {[%emt 0:01:00]} gxf6 {[%emt 0:00:49]} 44. Bxh6 {[%emt 0:00:29]} Qb2 {[%emt 0:01:13]} 45. Qd2 {[%emt 0:00:38]} Qxd2 {[%emt 0:00:09]} 46. Bxd2 {[%emt 0:00:02]} Kg7 {[%emt 0:01:19]} 47. Kg3 {[%emt 0:00:09]} Kg6 {[%emt 0:00:22]} 48. Be4+ {[%emt 0:01:52]} f5 {[%emt 0:00:18]} 49. Bb7 {[%emt 0:00:21]} Nf6 {[%emt 0:00:09]} 50. Kf4 {[%emt 0:01:57]} Nd3+ {[%emt 0:00:24]} 51. Kf3 {[%emt 0:01:01]} Ne8 {[%emt 0:00:45]} 52. Ke3 {[%emt 0:01:29]} Nd6 {[%emt 0:00:04]} 53. Bf3 {[%emt 0:00:44]} f4+ {[%emt 0:01:36]} 54. Kd4 {[%emt 0:02:06]} Nf5+ {[%emt 0:04:45]} 55. Kd5 {[%emt 0:00:30]} Nh4 56. Be4+ {[%emt 0:00:30]} f5 57. Bxd3 {[%emt 0:00:30]} cxd3 {[%emt 0:01:30]} 58. Bxf4 {[%emt 0:00:30]} Nf3 {[%emt 0:00:30]} 59. c4 {[%emt 0:00:30]} d2 {[%emt 0:00:30]} 60. Bxd2 {[%emt 0:00:30]} Nxd2 {[%emt 0:00:30]} 61. cxb5 f4 {[%emt 0:00:30]} 62. Kd4 {[%emt 0:01:00]} 1/2-1/2

[Event "45th National Sub Junior 2019"]
[Site "Tiruchengode"]
[Date "2019.07.14"]
[Round "8.8"]
[White "Aditya Bikram Paul"]
[Black "Ayushh Ravikumar"]
[Result "1/2-1/2"]
[ECO "E17"]
[WhiteElo "1761"]
[BlackElo "1946"]
[Annotator "NA"]
[PlyCount "64"]
[EventDate "2019.07.09"]
[EventCountry "IND"]
[SourceTitle "playchess.com"]
[Source "ChessBase"]
[SourceQuality "1"]
[TimeControl "5400+30"]

{[%evp 17,50,4,10,0,15,17,8,20,9,2,38,0,23,12,53,38,36,41,51,38,51,43,47,32767,32767,32767,32767,32767,32767,32767,32767,32767,0,0,0]} 1. c4 {[%emt 0:00:00]} Nf6 {[%emt 0:01:42]} 2. g3 {[%emt 0:00:00]} e6 {[%emt 0:00:19]} 3. Bg2 {[%emt 0:00:00]} d5 {[%emt 0:00:14]} 4. Nf3 {[%emt 0:00:00]} Be7 {[%emt 0:00:24]} 5. O-O {[%emt 0:00:00]} O-O {[%emt 0:00:05]} 6. b3 {[%emt 0:00:00]} b6 {[%emt 0:06:14]} 7. Bb2 {[%emt 0:00:26]} Bb7 {[%emt 0:00:20]} 8. cxd5 {[%emt 0:00:56]} exd5 {[%emt 0:03:27]} 9. d4 {[%emt 0:01:04]} Ne4 {[%emt 0:04:53] E17: Queen's Indian: 4 g3 Bb7 5 Bg2 Be7} (9... Nbd7 10. Nc3 Re8 11. a3 a6 12. Ne5 Bf8 13. Nd3 Ne4 14. Qc2 Bd6 15. e3 Qe7 16. Nb4 Bxb4 17. axb4 Nxc3 18. Bxc3 Nf6 {½-½ (42) Fedoseev,V (2715)-Abdusattorov,N (2560) Sharjah 2019}) 10. Nbd2 {[%emt 0:07:55]} Nxd2 {[%emt 0:10:27]} 11. Qxd2 {[%emt 0:00:52]} Re8 $146 {[%emt 0:01:25]} ({Predecessor:} 11... Nd7 12. Rac1 Re8 13. Ne5 Nxe5 14. dxe5 c6 15. Rfd1 f6 16. e4 dxe4 17. Qc2 {1-0 (42) Ptacnikova,L (2238)-Dolzhikova,O (2198) Warsaw 2013}) 12. Rac1 {[%emt 0:02:54]} Bd6 {[%emt 0:03:40]} 13. Ne5 {[%emt 0:01:53]} Qe7 {[%emt 0:04:08]} 14. e3 {[%emt 0:07:07]} Nd7 {[%emt 0:10:50]} 15. Nc4 {[%emt 0:04:09]} Nf6 {[%emt 0:10:53]} 16. Nxd6 {[%emt 0:00:22]} Qxd6 {[%emt 0:00:05]} 17. Qc2 {[%emt 0:00:35]} Re7 {[%emt 0:01:36]} 18. a4 {[%emt 0:03:26]} c6 {[%emt 0:10:25]} 19. Ra1 {[%emt 0:01:01]} Rc7 {[%emt 0:00:32]} 20. Ba3 {[%emt 0:04:56]} Qe6 {[%emt 0:00:19]} 21. a5 {[%emt 0:02:31]} Rac8 {[%emt 0:01:49]} 22. Rac1 {[%emt 0:03:20]} c5 {[%emt 0:04:46]} 23. axb6 {[%emt 0:01:28]} axb6 {[%emt 0:03:24]} 24. dxc5 {[%emt 0:00:04]} bxc5 {[%emt 0:01:01]} 25. Bb2 {[%emt 0:00:03]} Ne4 $11 {[%emt 0:08:51]} 26. Rfd1 {[%emt 0:01:22]} c4 {[%emt 0:01:11]} 27. Bxe4 {[%emt 0:57:06]} Qxe4 {[%emt 0:07:00]} 28. Qxe4 {[%emt 0:00:00]} dxe4 {[%emt 0:00:04]} 29. Rxc4 {[%emt 0:00:00]} Rxc4 {[%emt 0:00:13]} 30. bxc4 {[%emt 0:00:00]} f6 {[%emt 0:01:24]} 31. Ba3 {[%emt 0:00:00]} Ba6 {[%emt 0:01:04]} 32. c5 {[%emt 0:02:30]} Bd3 {[%emt 0:03:15]} 1/2-1/2